bitfinex/quotes_SOLUSD_20241220
["timestamp","ask_amount","ask_price","bid_price","bid_amount"]
[1734709812645,20.0,189.97,189.88,38.97402018]
[1734709813029,42.18232018,190.0,189.92,38.97402018]
[1734709813716,38.97402018,189.96,189.88,38.97402018]
[1734709813917,38.97402018,189.94,189.86,38.97402018]
[1734709814117,38.97402018,189.96,189.86,38.97402018]
[1734709814340,38.97402018,189.96,189.88,38.97402018]
[1734709814840,38.97402018,189.98,189.9,38.97402018]
[1734709815950,13.1599,189.97,189.9,38.97402018]
[1734709816252,38.97402018,189.96,189.88,38.97402018]
[1734709816453,13.1599,189.97,189.92,38.97402018]
[1734709816789,74.43672018,190.06,189.96,38.97402018]
[1734709817121,48.12872018,190.06,189.98,38.97402018]
[1734709817335,38.97402018,190.1,190.02,38.97402018]
[1734709817548,38.97402018,190.16,189.99,38.97402018]
[1734709817764,2.9939,190.18,189.99,38.97402018]
[1734709817765,38.97402018,190.14,190.06,38.97402018]
[1734709818254,38.97402018,190.1,190.02,38.97402018]
[1734709818433,38.97402018,190.03,189.96,38.97402018]
[1734709818944,38.97402018,190.05,189.96,38.97402018]
[1734709819118,38.97402018,190.01,189.94,38.97402018]
[1734709819314,38.97402018,190.03,189.94,38.97402018]
[1734709819524,20.0,189.98,189.92,38.97402018]
[1734709819919,20.0,189.98,189.94,38.97402018]
[1734709820247,52.13042018,190.03,189.96,38.97402018]
[1734709820668,38.97402018,190.05,189.97,0.12549]
[1734709820845,38.97402018,190.05,189.96,38.97402018]
[1734709821180,38.97402018,190.02,189.94,38.97402018]
[1734709821478,38.97402018,190.0,189.9,38.97402018]
[1734709821943,52.13202018,190.0,189.9,38.97402018]
[1734709822148,38.97402018,189.98,189.9,38.97402018]
[1734709822359,52.13202018,190.0,189.9,38.97402018]
[1734709822566,38.97402018,189.98,189.9,38.97402018]
[1734709823159,38.97402018,189.96,189.89,0.6635989]
[1734709823379,20.0,189.96,189.89,0.6635989]
[1734709823560,52.13382018,189.98,189.89,0.6635989]
[1734709823761,52.13382018,189.98,189.9,38.97402018]
[1734709824266,52.13382018,189.98,189.89,0.6635989]
[1734709824970,38.97402018,189.94,189.89,0.6635989]
[1734709825173,20.0,189.9,189.89,0.6635989]
[1734709825343,67.77895573,189.9,189.89,0.6635989]
[1734709825544,80.94375573,189.9,189.89,9.89e-05]
[1734709826165,0.12549,189.89,189.77,24.00207173]
[1734709826371,24.00207173,189.85,189.77,24.00207173]
[1734709826570,20.0,189.86,189.77,24.00207173]
[1734709826771,20.0,189.84,189.79,24.00207173]
[1734709826980,24.00207173,189.87,189.79,24.00207173]
[1734709827552,20.0,189.87,189.83,24.00207173]
[1734709827853,13.1625,189.94,189.85,24.00207173]
[1734709828078,13.1625,189.94,189.87,24.00207173]
[1734709828278,28.44580625,189.98,189.89,24.00207173]
[1734709828279,24.00207173,189.97,189.89,24.00207173]
[1734709828466,24.00207173,189.99,189.91,24.00207173]
[1734709828866,3.392,190.01,189.93,24.00207173]
[1734709829066,13.1549,190.05,189.99,24.00207173]
[1734709829261,24.00207173,190.09,189.99,24.00207173]
[1734709830010,24.00207173,190.09,190.01,24.00207173]
[1734709830296,24.00207173,190.07,189.99,24.00207173]
[1734709831282,24.00207173,190.07,189.97,24.00207173]
[1734709831660,20.0,190.01,189.93,24.00207173]
[1734709831902,20.0,190.01,189.95,24.00207173]
[1734709832890,24.00207173,190.04,189.95,24.00207173]
[1734709833194,38.95153703,190.04,189.95,38.95153703]
[1734709833703,38.95153703,190.06,189.97,38.95153703]
[1734709834307,38.95153703,190.1,190.01,38.95153703]
[1734709834466,38.95153703,190.12,190.03,38.95153703]
[1734709834672,38.95153703,190.06,189.98,38.95153703]
[1734709835002,13.1495,190.13,189.98,38.95153703]
[1734709835003,38.95153703,190.08,189.98,38.95153703]
[1734709835401,38.95153703,190.06,189.98,38.95153703]
[1734709836403,38.95153703,190.04,189.96,38.95153703]
[1734709836614,38.95153703,190.02,189.92,38.95153703]
[1734709837800,38.95153703,190.04,189.95,0.12549]
[1734709837999,20.0,190.05,189.98,38.95153703]
[1734709838592,52.09833703,190.16,190.03,38.95153703]
[1734709838794,52.09833703,190.16,190.07,38.95153703]
[1734709839104,38.95153703,190.14,190.05,38.95153703]
[1734709839353,52.09833703,190.16,190.07,38.95153703]
[1734709840070,52.09833703,190.16,190.0,161.902374]
[1734709840071,38.95153703,190.14,190.05,38.95153703]
[1734709840315,38.95153703,190.12,190.03,38.95153703]
[1734709841407,52.10173703,190.12,190.03,38.95153703]
[1734709841582,38.95153703,190.08,190.01,38.95153703]
[1734709842111,38.95153703,190.08,189.99,38.95153703]
[1734709842480,38.95153703,190.06,189.99,38.95153703]
[1734709842677,58.95153703,190.08,189.99,38.95153703]
[1734709843420,72.10423703,190.08,189.99,38.95153703]
[1734709843619,38.95153703,190.04,189.95,38.95153703]
[1734709844203,38.95153703,190.04,189.97,38.95153703]
[1734709844401,72.10423703,190.08,189.99,38.95153703]
[1734709844607,20.0,190.07,190.01,38.95153703]
[1734709844999,20.0,190.07,190.03,38.95153703]
[1734709845206,20.0,190.09,190.03,38.95153703]
[1734709846218,38.95153703,190.14,190.07,38.95153703]
[1734709848518,38.95153703,190.12,190.03,45.29163703]
[1734709849917,52.10103703,190.12,190.03,45.29163703]
[1734709850120,20.0,190.09,190.03,38.95153703]
[1734709850316,38.95153703,190.1,190.01,38.95153703]
[1734709850530,38.95153703,190.08,189.99,38.95153703]
[1734709851331,38.95153703,190.1,190.01,38.95153703]
[1734709851491,52.10103703,190.12,190.05,38.95153703]
[1734709851693,20.0,190.09,190.05,38.95153703]
[1734709852035,20.0,190.09,190.03,38.95153703]
[1734709852193,20.0,190.09,190.01,38.95153703]
[1734709852605,20.0,190.09,190.03,38.95153703]
[1734709854035,52.10383703,190.08,190.01,38.95153703]
[1734709854369,52.10383703,190.08,189.99,38.95153703]
[1734709855018,26.62659604,190.07,189.99,26.62659604]
[1734709855322,13.1537,190.06,189.99,26.62659604]
[1734709855532,26.62659604,190.05,189.97,32.86339604]
[1734709855906,26.62659604,190.05,189.95,26.62659604]
[1734709856127,26.62659604,190.03,189.95,26.62659604]
[1734709856829,26.62659604,190.01,189.93,26.62659604]
[1734709857026,20.0,190.02,189.95,26.62659604]
[1734709857199,26.62659604,190.05,189.97,26.62659604]
[1734709857396,29.7377,190.18,190.03,26.62659604]
[1734709857715,29.7377,190.18,189.98,3.4154]
[1734709857716,26.62659604,190.13,190.05,26.62659604]
[1734709859107,13.1489,190.13,190.07,43.22921263]
[1734709859527,13.1489,190.13,190.05,43.22921263]
[1734709860037,56.37601263,190.16,190.08,43.22921263]
[1734709860841,43.22921263,190.14,190.06,43.22921263]
[1734709861030,43.22921263,190.14,190.04,49.51771263]
[1734709861232,43.22921263,190.12,190.04,49.51771263]
[1734709862931,13.1502,190.11,190.04,6.2885]
[1734709863138,13.1502,190.11,190.02,43.22921263]
[1734709863435,43.22921263,190.08,190.0,43.22921263]
[1734709863742,43.22921263,190.04,189.94,49.89291263]
[1734709864112,43.22921263,190.04,189.96,43.22921263]
[1734709864437,43.22921263,190.08,190.0,43.22921263]
[1734709864739,20.0,190.07,190.0,43.22921263]
[1734709865133,43.22921263,190.1,190.02,43.22921263]
[1734709865332,43.22921263,190.1,190.0,43.22921263]
[1734709865638,43.22921263,190.08,190.0,43.22921263]
[1734709865846,39.4465,190.13,190.02,43.22921263]
[1734709865847,43.22921263,190.1,190.02,43.22921263]
[1734709866539,13.1488,190.13,190.06,43.22921263]
[1734709866745,43.22921263,190.14,190.06,43.22921263]
[1734709866921,43.22921263,190.16,190.06,43.22921263]
[1734709867320,43.22921263,190.14,190.06,43.22921263]
[1734709867725,43.22921263,190.14,190.04,43.22921263]
[1734709867930,43.22921263,190.12,190.04,43.22921263]
[1734709868127,43.22921263,190.14,190.06,43.22921263]
[1734709868943,13.1479,190.15,190.06,43.22921263]
[1734709869116,43.22921263,190.16,190.08,43.22921263]
[1734709869316,43.22921263,190.2,190.12,43.22921263]
[1734709870227,43.22921263,190.22,190.12,43.22921263]
[1734709870431,13.1435,190.21,190.12,43.22921263]
[1734709871118,43.22921263,190.22,190.12,43.22921263]
[1734709871332,43.22921263,190.22,190.06,151.27869]
[1734709871333,56.37071263,190.24,190.16,43.22921263]
[1734709871936,43.22921263,190.24,190.16,43.22921263]
[1734709872213,43.22921263,190.28,190.2,43.22921263]
[1734709872950,43.22921263,190.32,190.24,43.22921263]
[1734709873250,0.6635989,190.36,190.3,43.22921263]
[1734709873653,0.6635989,190.36,190.32,43.22921263]
[1734709873817,43.89281153,190.36,190.28,49.48211263]
[1734709874023,43.22921263,190.34,190.26,43.22921263]
[1734709874750,43.22921263,190.32,190.24,43.22921263]
[1734709875459,0.12549,190.33,190.26,43.22921263]
[1734709875750,43.89281153,190.36,190.28,43.22921263]
[1734709876342,0.6635989,190.36,190.3,43.22921263]
[1734709876533,0.6635989,190.36,190.32,43.22921263]
[1734709877118,0.6635989,190.36,190.3,43.22921263]
[1734709877417,0.6635989,190.36,190.26,141.514]
[1734709877418,43.22921263,190.34,190.24,43.22921263]
[1734709877624,43.22921263,190.32,190.24,43.22921263]
[1734709878941,0.6635989,190.36,190.26,43.22921263]
[1734709878942,43.22921263,190.34,190.26,43.22921263]
[1734709879253,43.22921263,190.34,190.23,6.4802]
[1734709879254,63.89281153,190.36,190.28,43.22921263]
[1734709880042,0.6635989,190.36,190.32,43.22921263]
[1734709880251,0.6635989,190.36,190.34,43.22921263]
[1734709880455,0.6635989,190.36,190.32,43.22921263]
[1734709880633,0.6635989,190.36,190.3,43.22921263]
[1734709881136,0.6635989,190.36,190.32,43.22921263]
[1734709881443,0.6635989,190.36,190.35,6.485]
[1734709881822,0.6635989,190.36,190.35,6.61049]
[1734709882020,0.6635989,190.36,190.35,30.387374]
[1734709882323,0.6635989,190.36,190.35,6.485]
[1734709886735,0.6635989,190.36,190.3,43.22921263]
[1734709886937,0.6635989,190.36,190.3,26.53649159]
[1734709888024,27.20009049,190.36,190.29,6.409]
[1734709888225,0.6635989,190.36,190.3,26.53649159]
[1734709888744,0.6635989,190.36,190.32,26.53649159]
[1734709889358,0.6635989,190.36,190.34,26.53649159]
[1734709889931,0.6635989,190.36,190.32,26.53649159]
[1734709890132,0.6635989,190.36,190.3,26.53649159]
[1734709891156,0.6635989,190.36,190.32,26.53649159]
[1734709892637,0.6635989,190.36,190.29,6.409]
[1734709892638,0.6635989,190.36,190.34,26.53649159]
[1734709893363,0.6635989,190.36,190.35,0.12549]
[1734709893971,0.6635989,190.36,190.35,23.902374]
[1734709894257,0.6635989,190.36,190.35,161.902374]
[1734709894435,3.2775,190.51,190.43,26.53649159]
[1734709895074,39.65979159,190.5,190.43,26.53649159]
[1734709895565,39.65979159,190.5,190.41,26.53649159]
[1734709897957,50.31337559,190.46,190.39,26.53649159]
[1734709898131,26.53649159,190.46,190.39,26.53649159]
[1734709898651,13.1247,190.48,190.43,26.53649159]
[1734709898965,3.2775,190.51,190.43,26.53649159]
[1734709899166,16.4003,190.51,190.43,26.53649159]
[1734709899540,13.1228,190.51,190.43,26.53649159]
[1734709900670,13.1228,190.51,190.45,26.53649159]
[1734709901440,13.1207,190.54,190.47,26.53649159]
[1734709902467,26.53649159,190.52,190.43,26.53649159]
[1734709902638,26.53649159,190.5,190.41,32.63989159]
[1734709903461,20.0,190.47,190.43,26.53649159]
[1734709903785,20.0,190.5,190.45,26.53649159]
[1734709903967,13.1214,190.53,190.45,26.53649159]
[1734709904886,26.53649159,190.52,190.43,26.53649159]
[1734709905473,46.53649159,190.5,190.43,26.53649159]
[1734709905671,46.53649159,190.5,190.41,32.63989159]
[1734709907184,13.1208,190.54,190.47,26.53649159]
[1734709907386,0.6635989,190.55,190.49,26.53649159]
[1734709907962,0.6635989,190.55,190.51,26.53649159]
[1734709908177,0.6635989,190.55,190.53,26.53649159]
[1734709909064,0.6635989,190.55,190.54,0.12549]
[1734709909882,0.6635989,190.55,190.53,26.53649159]
[1734709912412,0.10958137,190.55,190.53,26.53649159]
[1734709913365,0.10958137,190.55,190.54,0.12549]
[1734709913798,0.10958137,190.55,190.54,23.902374]
[1734709914182,26.238,190.71,190.54,23.902374]
[1734709914183,13.1098,190.7,190.58,0.12549]
[1734709914380,13.1098,190.7,190.62,26.53649159]
[1734709915075,13.1109,190.68,190.6,26.53649159]
[1734709915891,26.53649159,190.69,190.62,26.53649159]
[1734709916275,0.02,190.71,190.64,26.53649159]
[1734709917783,0.02,190.71,190.6,23.776884]
[1734709917966,0.02,190.71,190.64,26.53649159]
[1734709919177,20.02,190.71,190.64,26.53649159]
[1734709919429,0.02,190.71,190.66,26.53649159]
[1734709920391,0.02,190.71,190.7,26.53649159]
[1734709920603,0.02,190.71,190.68,26.53649159]
[1734709920916,0.02,190.71,190.66,26.53649159]
[1734709922193,20.0,190.7,190.64,26.53649159]
[1734709922394,26.53649159,190.69,190.6,26.53649159]
[1734709923475,26.53649159,190.69,190.5,28.64405074]
[1734709923476,20.0,190.58,190.44,6.0474]
[1734709923678,26.53649159,190.51,190.44,6.0474]
[1734709923980,26.53649159,190.56,190.49,26.53649159]
[1734709924203,26.53649159,190.58,190.49,26.53649159]
[1734709924806,26.53649159,190.56,190.47,26.53649159]
[1734709925116,26.53649159,190.52,190.44,6.0474]
[1734709925328,26.53649159,190.54,190.47,26.53649159]
[1734709925779,26.53649159,190.52,190.44,6.0474]
[1734709926507,26.53649159,190.54,190.45,26.53649159]
[1734709926684,26.53649159,190.56,190.48,23.776884]
[1734709926884,26.53649159,190.58,190.5,23.776884]
[1734709927286,26.53649159,190.56,190.47,26.53649159]
[1734709927477,26.53649159,190.51,190.39,6.5561]
[1734709927681,26.53649159,190.47,190.39,6.5561]
[1734709928417,6.17339,190.54,190.39,26.53649159]
[1734709928418,6.0479,190.54,190.39,26.53649159]
[1734709928586,26.53649159,190.47,190.37,26.53649159]
[1734709929089,26.53649159,190.47,190.39,26.53649159]
[1734709929280,39.65769159,190.53,190.43,26.53649159]
[1734709929476,26.53649159,190.55,190.47,26.53649159]
[1734709929898,26.53649159,190.57,190.48,23.776884]
[1734709930107,3.5683,190.61,190.5,23.776884]
[1734709930417,3.5683,190.61,190.49,26.53649159]
[1734709930418,26.53649159,190.57,190.49,26.53649159]
[1734709930580,13.1137,190.64,190.51,26.53649159]
[1734709930780,26.53649159,190.61,190.52,23.776884]
[1734709931006,26.53649159,190.59,190.52,23.776884]
[1734709931214,26.53649159,190.59,190.51,26.53649159]
[1734709931505,26.53649159,190.57,190.49,26.53649159]
[1734709932681,26.53649159,190.59,190.51,26.53649159]
[1734709933082,2.10162993,190.64,190.58,43.02102723]
[1734709933384,43.02102723,190.68,190.58,43.02102723]
[1734709933605,43.02102723,190.66,190.57,20.0]
[1734709934212,43.02102723,190.66,190.58,43.02102723]
[1734709934390,43.02102723,190.68,190.58,43.02102723]
[1734709934608,43.02102723,190.68,190.6,43.02102723]
[1734709936225,43.02102723,190.72,190.64,43.02102723]
[1734709936723,0.6635989,190.73,190.66,43.02102723]
[1734709937336,0.6635989,190.73,190.7,43.02102723]
[1734709937718,0.6635989,190.73,190.66,43.02102723]
[1734709938032,0.6635989,190.73,190.68,43.02102723]
[1734709939347,0.6635989,190.73,190.7,43.02102723]
[1734709939518,0.6635989,190.73,190.7,109.81893846]
[1734709942720,0.6635989,190.73,190.7,109.94442846]
[1734709942931,9.89e-05,190.73,190.72,6.43919]
[1734709943139,9.89e-05,190.73,190.72,74.02309435]
[1734709943738,9.89e-05,190.73,190.72,73.89760435]
[1734709944246,9.89e-05,190.73,190.72,7.09969312]
[1734709944439,9.89e-05,190.73,190.72,49.33472723]
[1734709945657,9.89e-05,190.73,190.72,73.11161123]
[1734709946058,9.89e-05,190.73,190.72,49.33472723]
[1734709946253,9.89e-05,190.73,190.72,43.02102723]
[1734709949962,9.89e-05,190.73,190.66,43.02102723]
[1734709950345,9.89e-05,190.73,190.68,43.02102723]
[1734709950539,9.89e-05,190.73,190.66,43.02102723]
[1734709950936,9.89e-05,190.73,190.68,43.02102723]
[1734709951756,9.89e-05,190.73,190.64,43.02102723]
[1734709951974,9.89e-05,190.73,190.68,43.02102723]
[1734709952655,9.89e-05,190.73,190.7,43.02102723]
[1734709955067,9.89e-05,190.73,190.71,26.42426953]
[1734709956443,9.89e-05,190.73,190.72,0.78625622]
[1734709956765,9.89e-05,190.73,190.71,39.53306953]
[1734709957640,9.89e-05,190.73,190.72,0.78615599]
[1734709959771,9.89e-05,190.73,190.72,24.56303999]
[1734709960085,9.89e-05,190.73,190.72,0.78615599]
[1734709961699,9.89e-05,190.73,190.72,24.56303999]
[1734709962197,9.89e-05,190.73,190.72,0.78615599]
[1734709962708,52.61656953,190.9,190.72,0.78615599]
[1734709962709,20.0,190.93,190.73,36.884384]
[1734709962886,26.42426953,190.9,190.81,26.42426953]
[1734709963496,26.42426953,190.88,190.79,26.42426953]
[1734709963911,13.0951,190.91,190.72,6.4187]
[1734709963912,26.42426953,190.86,190.77,26.42426953]
[1734709966418,26.42426953,190.86,190.79,26.42426953]
[1734709966598,0.12549,190.85,190.79,26.42426953]
[1734709967794,0.12549,190.85,190.77,26.42426953]
[1734709968003,20.0,190.79,190.72,26.42426953]
[1734709968512,20.0,190.79,190.76,26.42426953]
[1734709968823,20.0,190.81,190.74,26.42426953]
[1734709969122,20.0,190.79,190.74,26.42426953]
[1734709969419,20.0,190.79,190.68,0.78628932]
[1734709969603,26.42426953,190.78,190.69,26.42426953]
[1734709969808,26.42426953,190.78,190.71,26.42426953]
[1734709970410,20.0,190.79,190.71,26.42426953]
[1734709971307,20.0,190.79,190.73,26.42426953]
[1734709974622,20.0,190.79,190.71,26.42426953]
[1734709974831,20.0,190.79,190.67,6.2127]
[1734709974832,26.42426953,190.78,190.69,26.42426953]
[1734709975300,26.42426953,190.78,190.71,26.42426953]
[1734709975626,20.0,190.79,190.71,26.42426953]
[1734709978004,26.54975953,190.76,190.67,26.42426953]
[1734709978206,39.52886953,190.78,190.69,26.42426953]
[1734709978629,20.0,190.75,190.69,26.42426953]
[1734709979111,0.12549,190.77,190.69,26.42426953]
[1734709979628,20.0,190.75,190.69,26.42426953]
[1734709979829,20.0,190.75,190.67,26.42426953]
[1734709981032,20.0,190.75,190.65,26.42426953]
[1734709981033,0.12549,190.73,190.65,26.42426953]
[1734709981219,26.42426953,190.72,190.65,26.42426953]
[1734709981436,26.42426953,190.7,190.61,26.42426953]
[1734709981937,26.42426953,190.66,190.58,26.42426953]
[1734709982158,26.42426953,190.62,190.54,26.42426953]
[1734709982445,26.42426953,190.6,190.5,26.42426953]
[1734709982619,26.42426953,190.58,190.5,26.42426953]
[1734709982826,0.12549,190.61,190.49,7.95913402]
[1734709982827,26.42426953,190.56,190.49,7.95913402]
[1734709983123,26.42426953,190.56,190.48,26.42426953]
[1734709983337,13.1185,190.57,190.45,7.95913402]
[1734709983338,26.42426953,190.54,190.46,26.42426953]
[1734709983841,0.12549,190.53,190.44,26.42426953]
[1734709984346,0.12549,190.51,190.44,26.42426953]
[1734709984641,26.42426953,190.5,190.42,26.42426953]
[1734709985044,0.12549,190.49,190.4,26.42426953]
[1734709985208,26.42426953,190.46,190.38,26.42426953]
[1734709985532,26.42426953,190.44,190.36,26.42426953]
[1734709985707,26.42426953,190.46,190.38,26.42426953]
[1734709986355,3.5239,190.51,190.4,26.42426953]
[1734709986356,26.42426953,190.48,190.4,26.42426953]
[1734709987143,0.12549,190.45,190.38,26.42426953]
[1734709987509,13.124,190.5,190.4,26.42426953]
[1734709987510,26.42426953,190.48,190.4,26.42426953]
[1734709987841,3.5239,190.51,190.44,26.42426953]
[1734709988019,26.42426953,190.54,190.46,26.42426953]
[1734709988952,29.96806953,190.56,190.48,26.42426953]
[1734709989632,26.42426953,190.6,190.52,26.42426953]
[1734709990218,26.42426953,190.58,190.5,26.42426953]
[1734709990436,26.42426953,190.56,190.48,26.42426953]
[1734709990648,26.42426953,190.58,190.5,26.42426953]
[1734709990945,26.42426953,190.62,190.54,26.42426953]
[1734709991236,3.5438,190.63,190.56,26.42426953]
[1734709991419,26.42426953,190.64,190.56,26.42426953]
[1734709991832,26.42426953,190.58,190.43,6.0037]
[1734709992042,26.42426953,190.56,190.48,26.42426953]
[1734709992820,26.42426953,190.58,190.48,26.42426953]
[1734709993538,46.42426953,190.6,190.5,26.42426953]
[1734709993737,46.42426953,190.6,190.52,26.42426953]
[1734709994125,0.12549,190.59,190.5,26.42426953]
[1734709994315,59.54066953,190.6,190.48,26.42426953]
[1734709994316,26.42426953,190.56,190.48,26.42426953]
[1734709994516,26.42426953,190.58,190.5,26.42426953]
[1734709994728,59.54066953,190.6,190.52,26.42426953]
[1734709994945,26.42426953,190.58,190.5,26.42426953]
[1734709995623,20.0,190.6,190.52,26.42426953]
[1734709996023,20.0,190.6,190.54,26.42426953]
[1734709996225,39.53836953,190.64,190.54,26.42426953]
[1734709996434,26.42426953,190.64,190.56,26.42426953]
[1734709997145,2.07435447,190.65,190.56,26.42426953]
[1734709997352,26.42426953,190.66,190.58,26.42426953]
[1734709997642,29.96806953,190.7,190.62,26.42426953]
[1734709997854,26.42426953,190.72,190.64,26.42426953]
[1734709998062,26.42426953,190.74,190.64,26.42426953]
[1734709998355,26.42426953,190.7,190.62,26.42426953]
[1734709999046,26.42426953,190.68,190.6,26.42426953]
[1734709999244,0.12549,190.69,190.62,26.42426953]
[1734710000150,26.42426953,190.7,190.62,26.42426953]
[1734710000337,0.12549,190.69,190.6,26.42426953]
[1734710000825,46.42426953,190.68,190.6,26.42426953]
[1734710001022,26.42426953,190.68,190.6,26.42426953]
[1734710002452,20.0,190.68,190.6,26.42426953]
[1734710002655,46.42426953,190.68,190.6,26.42426953]
[1734710004434,46.42426953,190.68,190.58,26.42426953]
[1734710004846,20.0,190.68,190.6,26.42426953]
[1734710005653,59.53516953,190.68,190.6,26.42426953]
[1734710005950,59.53516953,190.68,190.58,26.42426953]
[1734710009567,26.42426953,190.66,190.58,26.42426953]
[1734710009750,26.42426953,190.66,190.56,26.42426953]
[1734710009952,39.53706953,190.66,190.56,26.42426953]
[1734710010127,39.53706953,190.66,190.58,26.42426953]
[1734710010449,26.42426953,190.66,190.58,26.42426953]
[1734710011131,26.42426953,190.62,190.54,26.42426953]
[1734710011342,26.42426953,190.64,190.56,26.42426953]
[1734710011847,20.0,190.63,190.56,26.42426953]
[1734710012257,20.0,190.63,190.58,26.42426953]
[1734710013158,30.00156953,190.66,190.58,26.42426953]
[1734710013464,30.00156953,190.66,190.56,26.42426953]
[1734710013634,26.42426953,190.64,190.54,26.42426953]
[1734710013836,26.42426953,190.58,190.47,19.4565]
[1734710014038,26.42426953,190.58,190.49,26.42426953]
[1734710014353,26.42426953,190.56,190.49,26.42426953]
[1734710014654,26.42426953,190.56,190.47,26.42426953]
[1734710016043,20.0,190.53,190.45,26.42426953]
[1734710016280,26.42426953,190.52,190.43,26.42426953]
[1734710017150,26.42426953,190.54,190.47,26.42426953]
[1734710017349,20.0,190.53,190.47,26.42426953]
[1734710017572,3.3945,190.68,190.53,30.122984]
[1734710017762,3.3945,190.68,190.6,26.42426953]
[1734710018887,26.42426953,190.67,190.58,26.42426953]
[1734710019849,26.42426953,190.67,190.57,26.42426953]
[1734710020159,26.42426953,190.67,190.53,6.3461]
[1734710020160,23.776884,190.64,190.55,26.42426953]
[1734710021158,20.0,190.61,190.55,26.42426953]
[1734710021768,23.776884,190.64,190.57,26.42426953]
[1734710022263,20.0,190.64,190.57,26.42426953]
[1734710022447,20.0,190.64,190.59,26.42426953]
[1734710022766,23.902374,190.67,190.59,26.42426953]
[1734710022954,16.5054,190.68,190.59,26.42426953]
[1734710023265,0.12549,190.67,190.59,26.42426953]
[1734710023439,0.12549,190.64,190.57,26.42426953]
[1734710024265,0.12549,190.58,190.47,9.9835]
[1734710024573,23.902374,190.58,190.5,26.42426953]
[1734710025866,23.902374,190.56,190.48,26.42426953]
[1734710026172,46.42426953,190.53,190.44,26.42426953]
[1734710026540,0.12549,190.5,190.41,6.0396]
[1734710026745,23.902374,190.52,190.4,26.42426953]
[1734710026746,20.0,190.47,190.4,26.42426953]
[1734710026970,46.42426953,190.47,190.4,26.42426953]
[1734710027487,20.12549,190.42,190.36,26.42426953]
[1734710027656,20.12549,190.42,190.34,26.42426953]
[1734710027657,0.12549,190.39,190.34,26.42426953]
[1734710027979,20.0,190.38,190.32,26.42426953]
[1734710028476,0.12549,190.37,190.32,26.42426953]
[1734710028772,23.776884,190.41,190.34,26.42426953]
[1734710028947,20.0,190.42,190.36,26.42426953]
[1734710029147,20.0,190.41,190.36,26.42426953]
[1734710029370,20.0,190.41,190.38,26.42426953]
[1734710030259,20.0,190.42,190.38,26.42426953]
[1734710030459,20.12549,190.43,190.38,26.42426953]
[1734710030659,29.73796953,190.49,190.4,26.42426953]
[1734710030851,23.776884,190.46,190.38,26.42426953]
[1734710031058,0.12549,190.45,190.4,26.42426953]
[1734710034181,0.12549,190.45,190.38,26.42426953]
[1734710034690,20.0,190.43,190.4,26.42426953]
[1734710035283,20.12549,190.42,190.38,26.42426953]
[1734710036888,20.0,190.42,190.4,26.42426953]
[1734710037049,23.776884,190.46,190.4,26.42426953]
[1734710037249,16.4379,190.49,190.42,26.42426953]
[1734710037444,16.4379,190.49,190.44,26.42426953]
[1734710037676,0.12549,190.48,190.44,26.42426953]
[1734710037861,6.36,190.54,190.46,26.42426953]
[1734710038062,29.74086953,190.55,190.48,26.42426953]
[1734710038267,31.90630575,190.55,190.48,26.42426953]
[1734710038462,0.12549,190.54,190.48,26.42426953]
[1734710038667,13.1197,190.56,190.5,26.42426953]
[1734710039083,2.10749954,190.57,190.5,26.42426953]
[1734710039378,45.90136953,190.59,190.5,26.42426953]
[1734710039579,26.42426953,190.53,190.38,6.0999]
[1734710039748,0.12549,190.52,190.44,26.42426953]
[1734710040760,0.12549,190.52,190.4,26.42426953]
[1734710040761,20.0,190.49,190.46,26.42426953]
[1734710041378,23.902374,190.48,190.38,6.0999]
[1734710041577,23.902374,190.48,190.4,26.42426953]
[1734710041878,20.12549,190.44,190.38,26.42426953]
[1734710042466,20.12549,190.44,190.4,26.42426953]
[1734710042987,20.0,190.44,190.4,26.42426953]
[1734710043281,13.126,190.47,190.4,26.42426953]
[1734710043481,13.126,190.47,190.33,23.776884]
[1734710043676,23.902374,190.46,190.4,26.42426953]
[1734710043984,20.0,190.43,190.38,26.42426953]
[1734710044179,20.0,190.43,190.36,26.42426953]
[1734710044180,20.12549,190.42,190.36,26.42426953]
[1734710044761,0.12549,190.42,190.36,26.42426953]
[1734710045079,23.902374,190.42,190.34,26.42426953]
[1734710045262,20.0,190.39,190.36,26.42426953]
[1734710046369,20.0,190.4,190.36,26.42426953]
[1734710047682,23.902374,190.39,190.36,26.42426953]
[1734710047979,33.1302,190.4,190.34,26.42426953]
[1734710048188,20.0,190.4,190.38,26.42426953]
[1734710048560,2.12707666,190.45,190.38,26.42426953]
[1734710048898,13.1262,190.46,190.38,26.42426953]
[1734710049485,13.1241,190.49,190.42,26.42426953]
[1734710049684,0.12549,190.48,190.42,26.42426953]
[1734710050087,26.42426953,190.51,190.36,6.4781]
[1734710050088,3.4019,190.53,190.46,26.42426953]